fUST/lending_fUST_20240917
["ID","MTS","AMOUNT","RATE_DAILY","PERIOD"]
[338364700,1726565679492,6645.59,0.00026,120]
[338364706,1726565679928,1117.53,0.00026,120]
[338364730,1726565681494,500.0,0.00026,120]
[338364753,1726565682641,626.95434679,0.00026,120]
[338364761,1726565683009,640.27,0.00026,120]
[338364764,1726565683203,580.18,0.00026,120]
[338364770,1726565683400,500.0,0.00026,120]
[338364794,1726565684644,500.0,0.00026,120]
[338364799,1726565684819,457.57525217,0.00026,120]
[338364802,1726565684875,500.0,0.00026,120]
[338364821,1726565685689,500.0,0.00026,120]
[338364826,1726565686363,500.0,0.00026,120]
[338364827,1726565686710,500.0,0.00026,120]
[338364829,1726565686824,548.63,0.00026,120]
[338364842,1726565687538,500.0,0.00026,120]
[338364844,1726565687584,500.0,0.00026,120]
[338364852,1726565687873,500.0,0.00026,120]
[338364868,1726565688695,6720.69,0.00026,120]
[338364870,1726565688742,500.62470373,0.00026,120]
[338364872,1726565688789,500.0,0.00026,120]
[338364877,1726565689063,828.02,0.00026,120]
[338364888,1726565689450,480.39439245,0.00026,120]
[338364897,1726565690033,2446.42,0.00026,120]
[338364900,1726565690129,453.57698395,0.00026,120]
[338364907,1726565690667,500.0,0.00026,120]
[338364912,1726565690886,500.0,0.00026,120]
[338364918,1726565691090,500.0,0.00026,120]
[338364923,1726565691257,500.0,0.00026,120]
[338364929,1726565691785,766.26,0.00026,120]
[338364930,1726565691853,500.0,0.00026,120]
[338364939,1726565692335,500.0,0.00026,120]
[338364948,1726565692854,684.56,0.00026,120]
[338364953,1726565693231,500.0,0.00026,120]
[338364955,1726565693294,774.21,0.00026,120]
[338364962,1726565693654,631.61376767,0.00026,120]
[338364963,1726565693708,828.87,0.00026,120]
[338364966,1726565693939,500.0,0.00026,120]
[338364970,1726565694223,3461.29,0.00026,120]
[338364994,1726565695617,2435.89,0.00026,120]
[338364995,1726565695870,2435.89,0.00026,120]
[338364996,1726565696023,761.32,0.00026,120]
[338365000,1726565696185,2435.89,0.00026,120]
[338365007,1726565696443,2435.89,0.00026,120]
[338365009,1726565696697,2435.89,0.00026,120]
[338365011,1726565697051,2435.89,0.00026,120]
[338365012,1726565697330,2435.89,0.00026,120]
[338365019,1726565697618,500.0,0.00026,120]
[338365022,1726565697700,2435.89,0.00026,120]
[338365027,1726565697935,2435.89,0.00026,120]
[338365029,1726565698026,590.34,0.00026,120]
[338365031,1726565698119,2163.81,0.00026,120]
[338365032,1726565698173,500.0,0.00026,120]
[338365034,1726565698234,2435.89,0.00026,120]
[338365041,1726565698569,2163.81,0.00026,120]
[338365043,1726565698627,2435.89,0.00026,120]
[338365045,1726565698733,2163.81,0.00026,120]
[338365046,1726565698817,2435.89,0.00026,120]
[338365048,1726565698931,2163.81,0.00026,120]
[338365052,1726565699077,2435.89,0.00026,120]
[338365053,1726565699214,2163.81,0.00026,120]
[338365054,1726565699325,2435.89,0.00026,120]
[338365058,1726565699457,2163.81,0.00026,120]
[338365063,1726565699594,2435.89,0.00026,120]
[338365067,1726565699706,2163.81,0.00026,120]
[338365069,1726565699768,500.0,0.00026,120]
[338365071,1726565699855,2435.89,0.00026,120]
[338365073,1726565699972,2163.81,0.00026,120]
[338365076,1726565700148,2435.89,0.00026,120]
[338365082,1726565700418,2435.89,0.00026,120]
[338365087,1726565700604,2163.81,0.00026,120]
[338365095,1726565700939,2163.81,0.00026,120]
[338365096,1726565701042,2435.89,0.00026,120]
[338365097,1726565701085,1915.7,0.00026,120]
[338365100,1726565701240,2163.81,0.00026,120]
[338365103,1726565701337,2435.89,0.00026,120]
[338365104,1726565701392,500.0,0.00026,120]
[338365107,1726565701570,2435.89,0.00026,120]
[338365108,1726565701655,2163.81,0.00026,120]
[338365114,1726565702174,2435.89,0.00026,120]
[338365116,1726565702268,2163.81,0.00026,120]
[338365117,1726565702384,2435.89,0.00026,120]
[338365123,1726565702724,2163.81,0.00026,120]
[338365125,1726565702793,2435.90674413,0.00026,120]
[338365128,1726565702855,2163.81,0.00026,120]
[338365130,1726565702920,4427.59,0.00026,120]
[338365133,1726565703037,22742.13,0.00026,120]
[338365135,1726565703086,2163.81,0.00026,120]
[338365137,1726565703131,500.0,0.00026,120]
[338365141,1726565703310,2163.81,0.00026,120]
[338365143,1726565703465,500.0,0.00026,120]
[338365144,1726565703523,2163.81,0.00026,120]
[338365146,1726565703587,1198.61,0.00026,120]
[338365148,1726565703755,2163.81,0.00026,120]
[338365152,1726565704026,2163.81,0.00026,120]
[338365155,1726565704297,2163.81,0.00026,120]
[338365161,1726565704549,2163.81,0.00026,120]
[338365166,1726565704830,2163.81,0.00026,120]
[338365173,1726565705100,500.0,0.00026,120]
[338365175,1726565705152,2163.82248136,0.00026,120]
[338365206,1726565706787,500.0,0.00026,120]
[338365207,1726565706836,3168.57,0.00026,120]
[338365220,1726565708171,2933.88,0.00026,120]
[338365225,1726565708538,500.0,0.00026,120]
[338365226,1726565708594,500.0,0.00026,120]
[338365234,1726565708879,500.0,0.00026,120]
[338365243,1726565709344,2869.35,0.00026,120]
[338365268,1726565710463,500.37505608,0.00026,120]
[338365270,1726565710511,4233.97,0.00026,120]
[338365298,1726565712048,500.0,0.00026,120]
[338365314,1726565712713,500.0,0.00026,120]
[338365317,1726565712791,500.0,0.00026,120]
[338365330,1726565713583,907.1,0.00026,120]
[338365333,1726565713926,500.0,0.00026,120]
[338365338,1726565714397,659.25,0.00026,120]
[338365341,1726565714707,500.0,0.00026,120]
[338365346,1726565715093,500.0,0.00026,120]
[338365348,1726565715192,1066.34,0.00026,120]
[338365351,1726565715263,506.25598377,0.00026,120]
[338365353,1726565715347,500.0,0.00026,120]
[338365356,1726565715486,500.0,0.00026,120]
[338365358,1726565715561,500.0,0.00026,120]
[338365361,1726565715697,542.42,0.00026,120]
[338365364,1726565716154,1953.08,0.00026,120]
[338365370,1726565716413,1953.08,0.00026,120]
[338365372,1726565716461,3480.48,0.00026,120]
[338365374,1726565716535,500.93730999,0.00026,120]
[338365377,1726565716652,500.0,0.00026,120]
[338365378,1726565716711,1953.08,0.00026,120]
[338365380,1726565716771,500.30277408,0.00026,120]
[338365386,1726565716964,1953.08,0.00026,120]
[338365392,1726565717237,1953.08,0.00026,120]
[338365396,1726565717493,1953.08,0.00026,120]
[338365402,1726565717761,1953.08,0.00026,120]
[338365406,1726565718022,1953.08,0.00026,120]
[338365408,1726565718316,1953.08,0.00026,120]
[338365409,1726565718572,1953.08,0.00026,120]
[338365410,1726565718698,1162.77,0.00026,120]
[338365411,1726565718866,1953.08,0.00026,120]
[338365412,1726565718942,500.0,0.00026,120]
[338365413,1726565719099,1953.08,0.00026,120]
[338365416,1726565719264,1088.49,0.00026,120]
[338365417,1726565719420,1953.08,0.00026,120]
[338365421,1726565719685,23563.63,0.00026,120]
[338365423,1726565719732,1953.08,0.00026,120]
[338365426,1726565719865,646.33865991,0.00026,120]
[338365428,1726565719960,1953.08,0.00026,120]
[338365438,1726565720465,1953.08,0.00026,120]
[338365441,1726565720577,1953.08,0.00026,120]
[338365445,1726565720903,1953.08,0.00026,120]
[338365450,1726565721098,1953.08,0.00026,120]
[338365454,1726565721356,1933.75,0.00026,120]
[338365455,1726565721412,1953.08,0.00026,120]
[338365459,1726565721679,1953.08,0.00026,120]
[338365464,1726565721931,1953.08,0.00026,120]
[338365470,1726565722193,1953.08,0.00026,120]
[338365475,1726565722465,1953.20889024,0.00026,120]
[338365488,1726565723291,4316.15,0.00026,120]
[338365489,1726565724301,531.90251521,0.00026,120]
[338365490,1726565724864,500.0,0.00026,120]
[338365491,1726565724915,500.0,0.00026,120]
[338365492,1726565725073,500.0,0.00026,120]
[338365493,1726565725368,508.47039928,0.00026,120]
[338365494,1726565726027,500.0,0.00026,120]
[338365495,1726565726808,689.49,0.00026,120]
[338365496,1726565727448,500.0,0.00026,120]
[338365497,1726565727602,1707.52,0.00026,120]
[338365498,1726565727866,1707.52,0.00026,120]
[338365499,1726565728125,1707.52,0.00026,120]
[338365500,1726565728380,1707.52,0.00026,120]
[338365501,1726565728426,500.0,0.00026,120]
[338365502,1726565728706,1707.52,0.00026,120]
[338365503,1726565728895,3864.34,0.00026,120]
[338365504,1726565728956,1707.52,0.00026,120]
[338365505,1726565729215,1707.52,0.00026,120]
[338365506,1726565729415,515.83,0.00026,120]
[338365507,1726565729475,1707.52,0.00026,120]
[338365508,1726565729732,1707.52,0.00026,120]
[338365509,1726565730003,1707.52,0.00026,120]
[338365510,1726565730261,1707.52,0.00026,120]
[338365511,1726565730550,1707.52,0.00026,120]
[338365512,1726565730626,500.0,0.00026,120]
[338365513,1726565731073,1707.52,0.00026,120]
[338365514,1726565731335,1707.52,0.00026,120]
[338365515,1726565731587,1707.52,0.00026,120]
[338365516,1726565731810,500.0,0.00026,120]
[338365517,1726565731865,1707.52,0.00026,120]
[338365518,1726565732122,1707.52,0.00026,120]
[338365519,1726565732366,1707.52,0.00026,120]
[338365520,1726565732744,1707.52,0.00026,120]
[338365521,1726565732930,1707.52,0.00026,120]
[338365522,1726565733537,500.0,0.00026,120]
[338365523,1726565733583,1707.52,0.00026,120]
[338365524,1726565733641,1427.81,0.00026,120]
[338365525,1726565733695,1707.52,0.00026,120]
[338365526,1726565733748,500.0,0.00026,120]
[338365527,1726565733801,1707.52,0.00026,120]
[338365528,1726565733983,1707.73420821,0.00026,120]
[338365529,1726565734278,500.0,0.00026,120]
[338365530,1726565735471,500.0,0.00026,120]
[338365531,1726565736287,500.0,0.00026,120]
[338365532,1726565736638,629.85,0.00026,120]
[338365533,1726565737440,500.0,0.00026,120]
[338365534,1726565738342,1077.53,0.00026,120]
[338365535,1726565739279,500.0,0.00026,120]
[338365536,1726565739435,549.58,0.00026,120]
[338365537,1726565739905,3012.93,0.00026,120]
[338365538,1726565741443,4793.43,0.00026,120]
[338365539,1726565741695,705.58,0.00026,120]
[338365540,1726565741928,500.0,0.00026,120]
[338365541,1726565742131,500.0,0.00026,120]
[338365542,1726565742306,500.0,0.00026,120]
[338365543,1726565742443,1296.22,0.00026,120]
[338365544,1726565742501,500.0,0.00026,120]
[338365545,1726565744692,641.15,0.00026,120]
[338365546,1726565745240,500.0,0.00026,120]
[338365547,1726565745384,500.0,0.00026,120]
[338365548,1726565745959,500.0,0.00026,120]
[338365549,1726565746901,500.0,0.00026,120]
[338365550,1726565746985,500.0,0.00026,120]
[338365551,1726565747312,1104.33,0.00026,120]
[338365552,1726565747417,500.0,0.00026,120]
[338365553,1726565748499,500.0,0.00026,120]
[338365554,1726565749068,500.0,0.00026,120]
[338365555,1726565749610,500.0,0.00026,120]
[338365556,1726565750435,500.0,0.00026,120]
[338365557,1726565750511,500.0,0.00026,120]
[338365558,1726565750795,774.97,0.00026,120]
[338365559,1726565750849,1331.48,0.00026,120]
[338365560,1726565751973,2339.53,0.00026,120]
[338365561,1726565752036,500.0,0.00026,120]
[338365562,1726565752092,500.0,0.00026,120]
[338365563,1726565754870,694.54,0.00026,120]
[338365564,1726565754970,500.0,0.00026,120]
[338365565,1726565755082,775.58,0.00026,120]
[338365566,1726565759217,500.0,0.00026,120]
[338365567,1726565759694,3516.43,0.00026,120]
[338365568,1726565759740,3360.81,0.00026,120]
[338365569,1726565760332,841.91,0.00026,120]
[338365570,1726565760965,500.0,0.00026,120]
[338365571,1726565761458,1136.1,0.00026,120]
[338365572,1726565761895,500.0,0.00026,120]
[338365573,1726565762067,500.0,0.00026,120]
[338365574,1726565762555,509.71693547,0.00026,120]
[338365575,1726565764383,693.79,0.00026,120]
[338365576,1726565764774,1469.05,0.00026,120]
[338365577,1726565765511,171.075725,0.00013699,2]
[338365578,1726565765572,509.40590396,0.00026,120]
[338365579,1726565765632,500.0,0.00026,120]
[338365580,1726565766668,500.0,0.00026,120]
[338365581,1726565767333,610.15689298,0.00026,120]
[338365582,1726565767829,747.46,0.00026,120]
[338365583,1726565769333,500.70659357,0.00026,120]
[338365584,1726565769557,500.0,0.00026,120]
[338365585,1726565771431,598.89,0.00026,120]
[338365586,1726565771485,500.0,0.00026,120]
[338365587,1726565773786,1165.42,0.00026,120]
[338365588,1726565773958,926.77,0.00026,120]
[338365589,1726565774098,1165.42,0.00026,120]
[338365590,1726565774363,1165.42,0.00026,120]
[338365591,1726565774641,1165.42,0.00026,120]
[338365592,1726565774949,1165.42,0.00026,120]
[338365593,1726565775037,501.63934339,0.00026,120]
[338365594,1726565775217,1165.42,0.00026,120]
[338365595,1726565776117,1165.42,0.00026,120]
[338365596,1726565776325,1165.42,0.00026,120]
[338365597,1726565776383,5366.15,0.00026,120]
[338365598,1726565776429,1165.42,0.00026,120]
[338365599,1726565776487,500.0,0.00026,120]
[338365600,1726565776557,1165.42,0.00026,120]
[338365601,1726565776697,1165.42,0.00026,120]
[338365602,1726565776969,1165.42,0.00026,120]
[338365603,1726565777235,1165.42,0.00026,120]
[338365604,1726565777390,4798.01,0.00026,120]
[338365605,1726565777491,1165.42,0.00026,120]
[338365606,1726565777750,1165.42,0.00026,120]
[338365607,1726565778038,1165.42,0.00026,120]
[338365608,1726565778391,1165.42,0.00026,120]
[338365609,1726565778612,1165.42,0.00026,120]
[338365610,1726565778702,886.15,0.00026,120]
[338365612,1726565778833,781.63,0.00026,120]
[338365613,1726565779112,1165.42,0.00026,120]
[338365614,1726565779371,500.0,0.00026,120]
[338365615,1726565779457,1165.42,0.00026,120]
[338365616,1726565779711,1165.42,0.00026,120]
[338365617,1726565779789,1933.29,0.00026,120]
[338365618,1726565780033,500.0,0.00026,120]
[338365619,1726565780097,1165.42,0.00026,120]
[338365620,1726565780557,1165.42,0.00026,120]
[338365621,1726565780610,961.11,0.00026,120]
[338365622,1726565780661,500.0,0.00026,120]
[338365623,1726565780736,1165.42239255,0.00026,120]
[338365624,1726565781164,540.89,0.00026,120]
[338365625,1726565781825,284.94627145,0.00026,120]
[338365626,1726565781885,391.84928416,0.00026,120]
[338365627,1726565781932,684.67,0.00026,120]
[338365628,1726565782882,704.61,0.00026,120]
[338365629,1726565783005,500.0,0.00026,120]
[338365630,1726565786726,1260.3,0.00026,120]
[338365631,1726565787240,500.0,0.00026,120]
[338365632,1726565787340,500.0,0.00026,120]
[338365633,1726565787924,677.46,0.00026,120]
[338365634,1726565788914,532.1487402,0.00026,120]
[338365635,1726565790243,500.0,0.00026,120]
[338365636,1726565790457,500.0,0.00026,120]
[338365637,1726565790544,783.14,0.00026,120]
[338365638,1726565790908,500.0,0.00026,120]
[338365639,1726565791801,1737.47,0.00026,120]
[338365640,1726565792260,2170.41,0.00026,120]
[338365641,1726565792925,1923.7,0.00026,120]
[338365642,1726565793169,500.0,0.00026,120]
[338365643,1726565793756,500.0,0.00026,120]
[338365644,1726565793819,4397.91,0.00026,120]
[338365645,1726565794126,4509.6,0.00026,120]
[338365646,1726565794993,783.27,0.00026,120]
[338365647,1726565795866,500.0,0.00026,120]
[338365648,1726565798307,500.0,0.00026,120]
[338365649,1726565798348,500.0,0.00026,120]
[338365650,1726565798596,500.0,0.00026,120]
[338365651,1726565799854,1833.06,0.00026,120]
[338365652,1726565800172,484.81634842,0.00026,120]
[338365653,1726565800879,296.22851724,0.00026,120]
[338365654,1726565801590,500.0,0.00026,120]
[338365655,1726565802023,500.29247991,0.00026,120]
[338365656,1726565802189,391.83477078,0.00026,120]
[338365657,1726565802884,1056.96,0.00026,120]
[338365658,1726565803076,500.0,0.00026,120]
[338365659,1726565804088,928.68,0.00026,120]
[338365660,1726565804637,500.0,0.00026,120]
[338365661,1726565805515,502.44464759,0.00026,120]
[338365662,1726565805996,570.88,0.00026,120]
[338365663,1726565806311,759.63,0.00026,120]
[338365664,1726565806925,500.0,0.00026,120]
[338365665,1726565806979,890.54,0.00026,120]
[338365666,1726565807635,500.0,0.00026,120]
[338365667,1726565808476,500.0,0.00026,120]
[338365668,1726565809621,647.4830291,0.00026,120]
[338365669,1726565810309,2971.35,0.00026,120]
[338365670,1726565811716,545.21,0.00026,120]
[338365671,1726565812600,500.0,0.00026,120]
[338365672,1726565812737,2449.56,0.00026,120]
[338365673,1726565812856,500.0,0.00026,120]
[338365674,1726565813554,500.0,0.00026,120]
[338365675,1726565813807,223.49469264,0.00026,120]
[338365676,1726565814699,6440.66,0.00026,120]
[338365677,1726565814743,370.5762342,0.00026,120]
[338365678,1726565814997,500.0,0.00026,120]
[338365679,1726565816690,500.0,0.00026,120]
[338365680,1726565816857,500.0,0.00026,120]
[338365681,1726565817109,250.0,0.00026,120]
[338365682,1726565818386,500.0,0.00026,120]
[338365683,1726565818986,500.0,0.00026,120]
[338365684,1726565819043,500.0,0.00026,120]
[338365685,1726565820326,721.12,0.00026,120]
[338365686,1726565820495,2582.24,0.00026,120]
[338365687,1726565820868,500.0,0.00026,120]
[338365688,1726565821098,500.0,0.00026,120]
[338365689,1726565821355,500.0,0.00026,120]
[338365690,1726565821539,517.49,0.00026,120]
[338365692,1726565823419,510.17642675,0.00026,120]
[338365693,1726565825821,500.0,0.00026,120]
[338365694,1726565826091,538.94591201,0.00026,120]
[338365695,1726565826709,500.0,0.00026,120]
[338365696,1726565827522,500.62774394,0.00026,120]
[338365697,1726565827754,1639.27,0.00026,120]
[338365698,1726565829136,500.0,0.00026,120]
[338365699,1726565829482,17525.88,0.00026,120]
[338365700,1726565830302,11785.35,0.00026,120]
[338365701,1726565834904,500.0,0.00026,120]
[338365702,1726565835699,500.0,0.00026,120]
[338365703,1726565836078,500.0,0.00026,120]
[338365704,1726565837235,1435.39,0.00026,120]
[338365705,1726565838370,500.0,0.00026,120]
[338365706,1726565841608,500.0,0.00026,120]
[338365707,1726565842363,1649.8,0.00026,120]
[338365708,1726565842799,1280.63,0.00026,120]
[338365709,1726565843339,518.18995688,0.00026,120]
[338365710,1726565844679,500.0,0.00026,120]
[338365711,1726565844892,500.0,0.00026,120]
[338365712,1726565845467,500.0,0.00026,120]
[338365713,1726565846410,885.99,0.00026,120]
[338365714,1726565847208,500.0,0.00026,120]
[338365715,1726565847379,500.0,0.00026,120]
[338365716,1726565847550,652.87,0.00026,120]
[338365717,1726565847986,500.0,0.00026,120]
[338365718,1726565848290,500.0,0.00026,120]
[338365719,1726565850479,519.12,0.00026,120]
[338365720,1726565850858,500.0,0.00026,120]
[338365721,1726565852274,4829.42,0.00026,120]
[338365722,1726565853767,500.0,0.00026,120]
[338365723,1726565854843,500.0,0.00026,120]
[338365724,1726565854890,500.0,0.00026,120]
[338365725,1726565855395,500.0,0.00026,120]
[338365726,1726565856241,500.0,0.00026,120]
[338365727,1726565856525,500.0,0.00026,120]
[338365728,1726565857221,1371.16,0.00026,120]
[338365729,1726565857843,500.0,0.00026,120]
[338365730,1726565858260,2904.74,0.00026,120]
[338365731,1726565860291,500.0,0.00026,120]
[338365732,1726565860368,502.94222203,0.00026,120]
[338365733,1726565861014,500.0,0.00026,120]
[338365734,1726565861494,500.0,0.00026,120]
[338365735,1726565861667,500.0,0.00026,120]
[338365736,1726565861759,500.0,0.00026,120]
[338365737,1726565862075,543.82041858,0.00026,120]
[338365738,1726565862123,2533.56,0.00026,120]
[338365739,1726565862285,1206.95,0.00026,120]
[338365740,1726565862429,500.0,0.00026,120]
[338365741,1726565862771,1958.03,0.00026,120]
[338365742,1726565863155,1185.23,0.00026,120]
[338365744,1726565864605,555.22,0.00026,120]
[338365745,1726565867456,2581.96,0.00026,120]
[338365746,1726565867890,3831.86,0.00026,120]
[338365747,1726565868643,500.0,0.00026,120]
[338365748,1726565868814,500.0,0.00026,120]
[338365749,1726565868866,500.0,0.00026,120]
[338365750,1726565869661,897.94,0.00026,120]
[338365751,1726565870797,173.93842401,0.00026,120]
[338365752,1726565870887,522.74930928,0.00026,120]
[338365753,1726565870932,556.26,0.00026,120]
[338365754,1726565870981,5037.97,0.00026,120]
[338365755,1726565872824,558.83,0.00026,120]
[338365756,1726565876247,500.0,0.00026,120]
[338365757,1726565876917,411.4520728,0.00026,120]
[338365758,1726565877330,515.41,0.00026,120]
[338365759,1726565877833,500.0,0.00026,120]
[338365760,1726565879499,500.0,0.00026,120]
[338365761,1726565879683,500.0,0.00026,120]
[338365762,1726565879737,500.0,0.00026,120]
[338365763,1726565880087,500.0,0.00026,120]
[338365764,1726565880151,521.37,0.00026,120]
[338365765,1726565881881,703.26,0.00026,120]
[338365766,1726565882756,710.08,0.00026,120]
[338365767,1726565882883,1159.16,0.00026,120]
[338365768,1726565883517,500.0,0.00026,120]
[338365769,1726565883980,500.0,0.00026,120]
[338365770,1726565884035,500.0,0.00026,120]
[338365771,1726565884248,411.4520728,0.00026,120]
[338365772,1726565884979,561.42987819,0.00026,120]
[338365773,1726565885301,592.85,0.00026,120]
[338365774,1726565885374,500.0,0.00026,120]
[338365775,1726565885709,500.0,0.00026,120]
[338365776,1726565887589,598.1667228,0.00026,120]
[338365777,1726565889646,500.0,0.00026,120]
[338365778,1726565890223,500.0,0.00026,120]
[338365779,1726565890337,583.77,0.00026,120]
[338365780,1726565890466,500.0,0.00026,120]
[338365781,1726565891096,411.4520728,0.00026,120]
[338365782,1726565893074,1088.76,0.00026,120]
[338365783,1726565893849,500.0,0.00026,120]
[338365784,1726565895012,1785.27,0.00026,120]
[338365785,1726565895950,500.0,0.00026,120]
[338365786,1726565896267,500.0,0.00026,120]
[338365787,1726565897109,509.80127082,0.00026,120]
[338365788,1726565897214,798.03,0.00026,120]
[338365789,1726565897399,500.0,0.00026,120]
[338365790,1726565897641,411.4520728,0.00026,120]
[338365791,1726565897695,602.78485499,0.00026,120]
[338365792,1726565898245,500.0,0.00026,120]
[338365793,1726565898378,500.0,0.00026,120]
[338365794,1726565898715,500.0,0.00026,120]
[338365795,1726565899004,500.0,0.00026,120]
[338365796,1726565901826,500.0,0.00026,120]
[338365797,1726565901945,1423.77,0.00026,120]
[338365798,1726565902922,1472.67,0.00026,120]
[338365799,1726565904359,620.11,0.00026,120]
[338365800,1726565904542,411.4520728,0.00026,120]
[338365801,1726565904636,500.0,0.00026,120]
[338365802,1726565904681,7233.41,0.00026,120]
[338365803,1726565905556,1850.04,0.00026,120]
[338365804,1726565905798,500.0,0.00026,120]
[338365805,1726565906214,500.0,0.00026,120]
[338365806,1726565906427,889.53,0.00026,120]
[338365807,1726565908905,1105.85,0.00026,120]
[338365808,1726565909008,630.51683107,0.00026,120]
[338365809,1726565910440,2185.52,0.00026,120]
[338365810,1726565910921,500.0,0.00026,120]
[338365811,1726565911218,570.43579835,0.00026,120]
[338365812,1726565911781,411.4520728,0.00026,120]
[338365813,1726565913152,500.0,0.00026,120]
[338365814,1726565913236,500.0,0.00026,120]
[338365815,1726565913491,500.0,0.00026,120]
[338365816,1726565914038,500.0,0.00026,120]
[338365817,1726565914876,500.0,0.00026,120]
[338365818,1726565915614,180.99685462,0.00026,120]
[338365819,1726565915676,4321.7,0.00026,120]
[338365820,1726565915946,500.0,0.00026,120]
[338365821,1726565916137,500.0,0.00026,120]
[338365822,1726565916970,516.19,0.00026,120]
[338365823,1726565917552,287.91842401,0.00026,120]
[338365824,1726565917704,500.0,0.00026,120]
[338365825,1726565918205,1138.39,0.00026,120]
[338365826,1726565918483,500.0,0.00026,120]
[338365827,1726565918586,500.0,0.00026,120]
[338365828,1726565920412,500.0,0.00026,120]
[338365829,1726565920784,500.0,0.00026,120]
[338365830,1726565920832,500.0,0.00026,120]
[338365831,1726565921442,500.0,0.00026,120]
[338365832,1726565921768,411.4520728,0.00026,120]
[338365833,1726565922558,500.0,0.00026,120]
[338365834,1726565922753,667.66,0.00026,120]